[Event "36th European Club Cup 2021"]
[Site "Struga"]
[Date "2021.09.20"]
[Round "3.50"]
[White "Kristensen, Kaare Hove"]
[Black "Seo, Jung Min"]
[Result "1/2-1/2"]
[ECO "E06"]
[WhiteElo "2336"]
[BlackElo "2469"]
[Annotator "ChessBase"]
[PlyCount "91"]
[EventDate "2021.09.18"]
[EventType "team-tourn"]
[EventCountry "MKD"]
[SourceTitle "playchess.com"]
[Source "ChessBase"]
[SourceQuality "1"]
[TimeControl "40/5400+30:1800+30"]

1. d4 {[%emt 0:00:10]} Nf6 {[%emt 0:00:06]} 2. c4 {[%emt 0:00:22]} e6 {[%emt 0:
00:03]} 3. g3 {[%emt 0:00:42]} d5 {[%emt 0:01:04]} 4. Bg2 {[%emt 0:01:06]} Be7
{[%emt 0:01:38]} 5. Nf3 {[%emt 0:00:14]} O-O {[%emt 0:00:54]} 6. O-O {[%emt 0:
00:26]} c6 {[%emt 0:01:08]} 7. Qc2 {[%emt 0:00:33]} b6 {[%emt 0:01:41]} 8. Nbd2
{[%emt 0:01:46]} Bb7 {[%emt 0:00:43]} 9. e4 {[%emt 0:00:48]} Na6 {[%emt 0:00:
53]} 10. a3 {[%emt 0:02:26]} Rc8 {[%emt 0:03:50]} 11. b4 {[%emt 0:10:09]} c5 {
[%emt 0:11:31]} 12. exd5 {[%emt 0:13:28]} exd5 {[%emt 0:00:17]} 13. dxc5 {
[%emt 0:02:47]} bxc5 {[%emt 0:02:03]} 14. b5 {[%emt 0:00:34]} Nb8 {[%emt 0:02:
56]} 15. Ne5 {[%emt 0:10:47]} Qc7 {[%emt 0:02:45]} 16. Re1 {[%emt 0:00:37]} Bd6
{[%emt 0:02:42]} 17. Nd3 {[%emt 0:07:54]} Nbd7 {[%emt 0:04:00]} 18. Bb2 {
[%emt 0:01:37]} Rfe8 {[%emt 0:10:56]} 19. Rxe8+ {[%emt 0:04:26]} Rxe8 {[%emt 0:
00:06]} 20. cxd5 {[%emt 0:00:24]} Bxd5 {[%emt 0:01:06]} 21. Bxd5 {[%emt 0:02:
09]} Nxd5 {[%emt 0:00:04]} 22. Nc4 {[%emt 0:00:27]} Bf8 {[%emt 0:06:17]} 23.
Re1 {[%emt 0:09:18]} Rxe1+ {[%emt 0:00:18]} 24. Nxe1 {[%emt 0:00:08]} N7b6 {
[%emt 0:01:26]} 25. Nf3 {[%emt 0:05:41]} h6 {[%emt 0:10:41]} 26. Nfe5 {[%emt 0:
03:05]} Nxc4 {[%emt 0:01:44]} 27. Nxc4 {[%emt 0:00:53]} Qd7 {[%emt 0:00:20]}
28. Qe4 {[%emt 0:06:35]} Ne7 {[%emt 0:04:00]} 29. Qf3 {[%emt 0:05:50]} Qxb5 {
[%emt 0:00:52]} 30. Nd6 {[%emt 0:03:41]} Qxb2 {[%emt 0:00:04]} 31. Qxf7+ {
[%emt 0:00:13]} Kh7 {[%emt 0:00:05]} 32. Qxf8 {[%emt 0:00:38]} Ng6 {[%emt 0:00:
57]} 33. Qf5 {[%emt 0:02:36]} Qxa3 {[%emt 0:00:48]} 34. Kg2 {[%emt 0:00:27]}
Qc3 {[%emt 0:14:32]} 35. Ne4 {[%emt 0:01:48]} Qe5 {[%emt 0:00:08]} 36. Qxe5 {
[%emt 0:00:25]} Nxe5 {[%emt 0:00:03]} 37. Nxc5 {[%emt 0:00:06]} a5 {[%emt 0:00:
30]} 38. f4 {[%emt 0:00:37]} Nc4 {[%emt 0:00:07]} 39. Na4 {[%emt 0:00:14]} Kg6
{[%emt 0:00:08]} 40. g4 {[%emt 0:00:00]} Kf6 {[%emt 0:00:00]} 41. Kg3 {[%emt 0:
03:11]} Nd2 {[%emt 0:01:54]} 42. h3 {[%emt 0:05:56]} Nc4 {[%emt 0:01:36]} 43.
Kf3 {[%emt 0:04:19]} Nd6 {[%emt 0:00:43]} 44. Ke3 {[%emt 0:01:51]} Nc4+ {
[%emt 0:00:14]} 45. Kd4 {[%emt 0:00:43]} Nd6 {[%emt 0:00:05]} 46. Kd5 {[%emt 0:
02:45]} 1/2-1/2

[Event "36th European Club Cup 2021"]
[Site "Struga"]
[Date "2021.09.20"]
[Round "3.51"]
[White "Lokander, Martin"]
[Black "Sylvan, Jacob"]
[Result "1-0"]
[ECO "A37"]
[WhiteElo "2452"]
[BlackElo "2307"]
[Annotator "ChessBase"]
[PlyCount "111"]
[EventDate "2021.09.18"]
[EventType "team-tourn"]
[EventCountry "MKD"]
[SourceTitle "playchess.com"]
[Source "ChessBase"]
[SourceQuality "1"]
[TimeControl "40/5400+30:1800+30"]

1. Nf3 {[%emt 0:00:22]} c5 {[%emt 0:00:30]} 2. g3 {[%emt 0:00:23]} Nc6 {
[%emt 0:02:17]} 3. Bg2 {[%emt 0:00:15]} e5 {[%emt 0:03:20]} 4. c4 {[%emt 1:31:
30]} g6 {[%emt 0:01:54]} 5. Nc3 {[%emt 0:00:00]} Bg7 {[%emt 0:00:19]} 6. d3 {
[%emt 0:00:00]} d6 {[%emt 0:01:03]} 7. Nd2 {[%emt 0:00:00]} Nge7 {[%emt 0:02:
43]} 8. Nf1 {[%emt 0:00:00]} Be6 {[%emt 0:00:25]} 9. Ne3 {[%emt 0:00:00]} O-O {
[%emt 0:00:25]} 10. O-O {[%emt 0:00:00]} Rb8 {[%emt 0:06:40]} 11. Ned5 {
[%emt 0:00:00]} a6 {[%emt 0:01:00]} 12. a4 {[%emt 0:00:00]} a5 {[%emt 0:16:35]}
13. Bg5 {[%emt 0:00:00]} f6 {[%emt 0:07:48]} 14. Bd2 {[%emt 0:00:00]} h6 {
[%emt 0:01:56]} 15. Nb5 {[%emt 0:00:00]} f5 {[%emt 0:07:05]} 16. e3 {[%emt 0:
00:00]} Bf7 {[%emt 0:05:46]} 17. Bc3 {[%emt 0:00:00]} Kh7 {[%emt 0:04:28]} 18.
Qb3 {[%emt 0:00:00]} Nxd5 {[%emt 0:03:53]} 19. Bxd5 {[%emt 0:00:00]} Be8 {
[%emt 0:00:45]} 20. Rad1 {[%emt 0:00:00]} Nb4 {[%emt 0:07:16]} 21. Bg2 {
[%emt 0:00:00]} Qb6 {[%emt 0:00:54]} 22. Bxb4 {[%emt 0:00:00]} axb4 {[%emt 0:
00:23]} 23. Qc2 {[%emt 0:00:00]} Rd8 {[%emt 0:14:03]} 24. Bd5 {[%emt 0:00:00]}
f4 {[%emt 0:00:38]} 25. Be4 {[%emt 0:00:00]} Rd7 {[%emt 0:01:48]} 26. d4 {
[%emt 0:00:00]} fxe3 {[%emt 0:03:28]} 27. fxe3 {[%emt 0:00:00]} Rxf1+ {[%emt 0:
00:18]} 28. Kxf1 {[%emt 0:00:00]} cxd4 {[%emt 0:00:34]} 29. exd4 {[%emt 0:00:
00]} exd4 {[%emt 0:00:07]} 30. Qd3 {[%emt 0:00:05]} Re7 {[%emt 0:01:47]} 31. b3
{[%emt 0:01:12]} Qc5 {[%emt 0:00:37]} 32. Nxd4 {[%emt 0:01:05]} Qh5 {[%emt 0:
01:06]} 33. Nf3 {[%emt 0:04:04]} Rf7 {[%emt 0:02:07]} 34. Kg2 {[%emt 0:01:06]}
Re7 {[%emt 0:00:49]} 35. Re1 {[%emt 0:02:03]} Bf8 {[%emt 0:01:13]} 36. h3 {
[%emt 0:00:45]} Qc5 {[%emt 0:01:02]} 37. Bxb7 {[%emt 0:01:02]} Rxe1 {[%emt 0:
01:00]} 38. Nxe1 {[%emt 0:00:04]} Qc7 {[%emt 0:00:27]} 39. Bd5 {[%emt 0:00:25]}
Qg7 {[%emt 0:00:29]} 40. Qd2 {[%emt 0:00:00]} Qa1 {[%emt 0:00:00]} 41. Nd3 {
[%emt 0:05:38]} Bg7 {[%emt 0:02:22]} 42. Qe1 {[%emt 0:02:24]} Qa2+ {[%emt 0:01:
16]} 43. Nf2 {[%emt 0:00:24]} Bd7 {[%emt 0:00:36]} 44. Qe3 {[%emt 0:02:35]} h5
{[%emt 0:02:01]} 45. Kf3 {[%emt 0:02:09]} Bf5 {[%emt 0:07:00]} 46. g4 {[%emt 0:
07:37]} hxg4+ {[%emt 0:04:47]} 47. hxg4 {[%emt 0:00:05]} Bc2 {[%emt 0:00:06]}
48. c5 {[%emt 0:02:24]} dxc5 {[%emt 0:00:09]} 49. Qe6 {[%emt 0:01:05]} g5 {
[%emt 0:02:26]} 50. Ne4 {[%emt 0:01:56]} Bd1+ {[%emt 0:01:13]} 51. Kg3 {
[%emt 0:00:06]} Bd4 {[%emt 0:00:44]} 52. Qg8+ {[%emt 0:04:04]} Kh6 {[%emt 0:00:
38]} 53. Qxg5+ {[%emt 0:00:13]} Kh7 {[%emt 0:00:04]} 54. Qg8+ {[%emt 0:00:14]}
Kh6 {[%emt 0:00:04]} 55. g5+ {[%emt 0:00:11]} Kh5 {[%emt 0:00:03]} 56. Qh7# {
[%emt 0:00:09]} 1-0

[Event "36th European Club Cup 2021"]
[Site "Struga"]
[Date "2021.09.20"]
[Round "3.52"]
[White "Hove, Esben Kjems"]
[Black "Ertan, Can"]
[Result "1-0"]
[ECO "D02"]
[WhiteElo "2315"]
[BlackElo "2384"]
[Annotator "NA"]
[PlyCount "65"]
[EventDate "2021.09.18"]
[EventType "team-tourn"]
[EventCountry "MKD"]
[SourceTitle "playchess.com"]
[Source "ChessBase"]
[SourceQuality "1"]
[TimeControl "40/5400+30:1800+30"]

1. d4 {[%emt 0:00:03]} Nf6 {[%emt 0:00:14]} 2. Bf4 {[%emt 0:00:13]} e6 {
[%emt 0:00:39]} 3. e3 {[%emt 0:00:18]} c5 {[%emt 0:00:10]} 4. c3 {[%emt 0:00:
08]} Nc6 {[%emt 0:00:04]} 5. Nd2 {[%emt 0:00:43]} d5 {[%emt 0:00:36]} 6. Ngf3 {
[%emt 0:00:10]} h6 {[%emt 0:00:30]} 7. Bd3 {[%emt 0:01:04]} Nh5 {[%emt 0:00:24]
} 8. Be5 {[%emt 0:01:10]} a6 {[%emt 0:10:16]} 9. h3 {[%emt 0:15:56]} Nxe5 {
[%emt 0:00:43]} 10. Nxe5 {[%emt 0:04:31]} Nf6 {[%emt 0:00:04]} 11. O-O {
[%emt 0:00:16]} Bd6 {[%emt 0:28:02]} 12. f4 {[%emt 0:02:05]} Bd7 {[%emt 0:00:
40]} 13. Rf3 {[%emt 0:06:22]} Qe7 {[%emt 0:07:03]} 14. Qe2 {[%emt 0:12:03]} g6
{[%emt 0:11:06]} 15. e4 {[%emt 0:14:27]} cxd4 {[%emt 0:09:55]} 16. cxd4 {
[%emt 0:00:20]} Bc7 {[%emt 0:03:05]} 17. Nxd7 {[%emt 0:06:16]} Qxd7 {[%emt 0:
00:13]} 18. e5 {[%emt 0:00:39]} Ng8 {[%emt 0:01:02]} 19. Nb3 {[%emt 0:02:01]}
Qa4 {[%emt 0:10:07]} 20. Qc2 {[%emt 0:11:57]} Bb6 {[%emt 0:01:37]} 21. Bxg6 {
[%emt 0:00:50]} Bxd4+ {[%emt 0:00:36]} 22. Kh1 {[%emt 0:00:11]} Ne7 {[%emt 0:
00:21]} 23. Nxd4 {[%emt 0:03:13]} Qxd4 {[%emt 0:00:19]} 24. Rd1 {[%emt 0:00:38]
} Qb6 {[%emt 0:06:50]} 25. Rb3 {[%emt 0:03:33]} Qa7 {[%emt 0:01:51]} 26. Bd3 {
[%emt 0:01:12]} Nc6 {[%emt 0:00:20]} 27. Rc3 {[%emt 0:04:13]} Rg8 {[%emt 0:03:
45]} 28. f5 {[%emt 0:02:50]} Qb6 {[%emt 0:01:23]} 29. fxe6 {[%emt 0:02:34]}
fxe6 {[%emt 0:00:04]} 30. Bg6+ {[%emt 0:02:37]} Ke7 {[%emt 0:00:03]} 31. Bh5 {
[%emt 0:01:03]} Raf8 {[%emt 0:02:24]} 32. Rb3 {[%emt 0:00:47]} Qc7 {[%emt 0:00:
45]} 33. Rxb7 {[%emt 0:00:28]} 1-0

[Event "36th European Club Cup 2021"]
[Site "Struga"]
[Date "2021.09.20"]
[Round "3.53"]
[White "Arman, Deniz"]
[Black "Jakobsen, Peter"]
[Result "1-0"]
[ECO "B22"]
[WhiteElo "2336"]
[BlackElo "2202"]
[Annotator "NA"]
[PlyCount "79"]
[EventDate "2021.09.18"]
[EventType "team-tourn"]
[EventCountry "MKD"]
[SourceTitle "playchess.com"]
[Source "ChessBase"]
[SourceQuality "1"]
[TimeControl "40/5400+30:1800+30"]

1. e4 {[%emt 0:00:09]} c5 {[%emt 0:00:05]} 2. c3 {[%emt 0:00:45]} d5 {[%emt 0:
00:08]} 3. exd5 {[%emt 0:00:08]} Qxd5 {[%emt 0:00:07]} 4. d4 {[%emt 0:01:21]}
e6 {[%emt 0:00:06]} 5. Nf3 {[%emt 0:00:46]} Nf6 {[%emt 0:00:06]} 6. Na3 {
[%emt 0:00:23]} Qd8 {[%emt 0:00:47]} 7. Nc4 {[%emt 0:01:27]} Be7 {[%emt 0:02:
42]} 8. Bf4 {[%emt 0:08:18]} cxd4 {[%emt 0:06:34]} 9. Qxd4 {[%emt 0:05:10]} O-O
{[%emt 0:03:45]} 10. Qxd8 {[%emt 0:22:56]} Rxd8 {[%emt 0:00:08]} 11. Rd1 {
[%emt 0:01:18]} Rxd1+ {[%emt 0:02:09]} 12. Kxd1 {[%emt 0:00:06]} Nc6 {[%emt 0:
01:38]} 13. Be2 {[%emt 0:05:08]} b6 {[%emt 0:17:52]} 14. Kc2 {[%emt 0:13:21]}
Bb7 {[%emt 0:08:33]} 15. Rd1 {[%emt 0:07:08]} Nd5 {[%emt 0:14:10]} 16. Bg3 {
[%emt 0:03:03]} Rd8 {[%emt 0:01:16]} 17. a4 {[%emt 0:05:34]} f6 {[%emt 0:08:00]
} 18. Nfd2 {[%emt 0:00:43]} Bc8 {[%emt 0:10:29]} 19. Nf1 {[%emt 0:13:22]} e5 {
[%emt 0:05:54]} 20. Nfe3 {[%emt 0:00:30]} Nxe3+ {[%emt 0:00:20]} 21. Nxe3 {
[%emt 0:00:05]} Be6 {[%emt 0:02:31]} 22. Rxd8+ {[%emt 0:00:56]} Bxd8 {[%emt 0:
01:25]} 23. Bb5 {[%emt 0:00:33]} Ne7 {[%emt 0:00:57]} 24. f4 {[%emt 0:04:03]}
exf4 {[%emt 0:03:23]} 25. Bxf4 {[%emt 0:00:06]} Nd5 {[%emt 0:00:27]} 26. Nxd5 {
[%emt 0:00:04]} Bxd5 {[%emt 0:00:04]} 27. g3 {[%emt 0:01:22]} a5 {[%emt 0:02:
12]} 28. Kd3 {[%emt 0:01:12]} Kf7 {[%emt 0:01:39]} 29. Bc4 {[%emt 0:00:28]} Ke6
{[%emt 0:00:15]} 30. Kd4 {[%emt 0:00:04]} Bxc4 {[%emt 0:00:22]} 31. Kxc4 {
[%emt 0:00:03]} g5 {[%emt 0:00:30]} 32. Bb8 {[%emt 0:04:11]} f5 {[%emt 0:01:41]
} 33. b4 {[%emt 0:00:29]} axb4 {[%emt 0:01:51]} 34. cxb4 {[%emt 0:00:11]} h5 {
[%emt 0:01:26]} 35. h3 {[%emt 0:00:42]} g4 {[%emt 0:02:57]} 36. h4 {[%emt 0:00:
24]} Be7 {[%emt 0:00:57]} 37. a5 {[%emt 0:00:25]} bxa5 {[%emt 0:00:01]} 38.
bxa5 {[%emt 0:00:05]} Bd6 {[%emt 0:00:16]} 39. Bxd6 {[%emt 0:00:38]} Kxd6 {
[%emt 0:00:00]} 40. Kd4 {[%emt 0:00:00]} 1-0

[Event "36th European Club Cup 2021"]
[Site "Struga"]
[Date "2021.09.20"]
[Round "3.54"]
[White "Andersen, Peter Vestergaard"]
[Black "Thorn, Eric"]
[Result "0-1"]
[ECO "C58"]
[WhiteElo "1833"]
[BlackElo "2292"]
[Annotator "NA"]
[PlyCount "80"]
[EventDate "2021.09.18"]
[EventType "team-tourn"]
[EventCountry "MKD"]
[SourceTitle "playchess.com"]
[Source "ChessBase"]
[SourceQuality "1"]
[TimeControl "40/5400+30:1800+30"]

1. e4 {[%emt 0:00:21]} e5 {[%emt 0:00:20]} 2. Nf3 {[%emt 0:00:07]} Nc6 {
[%emt 0:00:07]} 3. Bc4 {[%emt 0:00:10]} Nf6 {[%emt 0:00:33]} 4. Ng5 {[%emt 0:
00:12]} d5 {[%emt 0:00:58]} 5. exd5 {[%emt 0:00:57]} Na5 {[%emt 0:00:10]} 6.
Bb5+ {[%emt 0:00:38]} c6 {[%emt 0:00:21]} 7. dxc6 {[%emt 0:00:12]} bxc6 {
[%emt 0:00:03]} 8. Bd3 {[%emt 0:00:10]} Nd5 {[%emt 0:01:02]} 9. Ne4 {[%emt 0:
02:16]} f5 {[%emt 0:02:35]} 10. Ng3 {[%emt 0:01:42]} Qf6 {[%emt 0:17:42]} 11.
Nc3 {[%emt 0:08:31]} Nf4 {[%emt 0:11:04]} 12. Bf1 {[%emt 0:01:16]} Bc5 {
[%emt 0:07:06]} 13. d3 {[%emt 0:03:10]} O-O {[%emt 0:01:00]} 14. Be3 {[%emt 0:
00:33]} Bd6 {[%emt 0:08:44]} 15. Nh5 {[%emt 0:18:12]} Qg5 {[%emt 0:06:01]} 16.
Ng3 {[%emt 0:13:07]} Qe7 {[%emt 0:02:53]} 17. Nge2 {[%emt 0:03:17]} Ng6 {
[%emt 0:02:25]} 18. f3 {[%emt 0:02:41]} c5 {[%emt 0:01:25]} 19. Nd5 {[%emt 0:
04:45]} Qe6 {[%emt 0:06:05]} 20. Ndc3 {[%emt 0:02:50]} Rb8 {[%emt 0:01:56]} 21.
b3 {[%emt 0:01:08]} Bb7 {[%emt 0:01:41]} 22. Na4 {[%emt 0:03:17]} Qe7 {[%emt 0:
01:51]} 23. Nec3 {[%emt 0:02:33]} e4 {[%emt 0:07:30]} 24. dxe4 {[%emt 0:02:28]}
fxe4 {[%emt 0:00:03]} 25. fxe4 {[%emt 0:10:58]} Qh4+ {[%emt 0:05:20]} 26. Kd2 {
[%emt 0:05:54]} Bf4 {[%emt 0:00:06]} 27. Qe2 {[%emt 0:01:17]} Qh6 {[%emt 0:00:
52]} 28. Nd1 {[%emt 0:03:25]} Rbd8+ {[%emt 0:00:58]} 29. Kc1 {[%emt 0:00:36]}
Rxd1+ {[%emt 0:04:16]} 30. Qxd1 {[%emt 0:00:16]} Bxe3+ {[%emt 0:00:05]} 31. Kb2
{[%emt 0:01:32]} Bxe4 {[%emt 0:02:37]} 32. Bd3 {[%emt 0:07:59]} Bd4+ {[%emt 0:
00:41]} 33. Nc3 {[%emt 0:00:00]} Qe3 {[%emt 0:01:08]} 34. Re1 {[%emt 0:00:00]}
Bxc3+ {[%emt 0:00:05]} 35. Kxc3 {[%emt 0:00:00]} Qd4+ {[%emt 0:00:05]} 36. Kd2
{[%emt 0:00:00]} Rf2+ {[%emt 0:00:15]} 37. Re2 {[%emt 0:00:00]} Bxd3 {[%emt 0:
00:24]} 38. cxd3 {[%emt 0:00:00]} Qb2+ {[%emt 0:00:04]} 39. Ke3 {[%emt 0:00:00]
} Rxe2+ {[%emt 0:00:06]} 40. Qxe2 {[%emt 0:00:00]} Qxa1 {[%emt 0:00:00]} 0-1

[Event "36th European Club Cup 2021"]
[Site "Struga"]
[Date "2021.09.20"]
[Round "3.55"]
[White "Markoja, Boris"]
[Black "Dardha, Daniel"]
[Result "1-0"]
[ECO "A40"]
[WhiteElo "2453"]
[BlackElo "2521"]
[Annotator "ChessBase"]
[PlyCount "69"]
[EventDate "2021.09.18"]
[EventType "team-tourn"]
[EventCountry "MKD"]
[SourceTitle "playchess.com"]
[Source "ChessBase"]
[SourceQuality "1"]
[TimeControl "40/5400+30:1800+30"]

1. c4 {[%emt 0:00:04]} b6 {[%emt 0:00:37]} 2. d4 {[%emt 0:03:02]} e6 {[%emt 0:
00:09]} 3. e4 {[%emt 0:00:57]} Bb4+ {[%emt 0:00:19]} 4. Nc3 {[%emt 0:01:38]}
Bb7 {[%emt 0:00:34]} 5. f3 {[%emt 0:01:56]} f5 {[%emt 0:05:28]} 6. exf5 {
[%emt 0:08:20]} Nh6 {[%emt 0:00:12]} 7. fxe6 {[%emt 0:01:50]} Nf5 {[%emt 0:00:
03]} 8. Bf4 {[%emt 0:01:21]} dxe6 {[%emt 0:02:24]} 9. Nge2 {[%emt 0:11:03]} O-O
{[%emt 0:02:00]} 10. Qd2 {[%emt 0:09:40]} Nc6 {[%emt 0:22:01]} 11. O-O-O {
[%emt 0:02:40]} Qf6 {[%emt 0:09:10]} 12. Be3 {[%emt 0:18:49]} Qg6 {[%emt 0:19:
48]} 13. Ng3 {[%emt 0:03:57]} b5 {[%emt 0:08:55]} 14. Nxf5 {[%emt 0:01:02]}
exf5 {[%emt 0:01:57]} 15. cxb5 {[%emt 0:02:14]} Ne7 {[%emt 0:00:18]} 16. Bc4+ {
[%emt 0:01:21]} Kh8 {[%emt 0:00:02]} 17. Qc2 {[%emt 0:03:17]} a6 {[%emt 0:03:
13]} 18. bxa6 {[%emt 0:00:51]} Bxa6 {[%emt 0:00:10]} 19. Bb3 {[%emt 0:02:00]}
Bd6 {[%emt 0:04:34]} 20. h4 {[%emt 0:03:08]} Nc6 {[%emt 0:02:48]} 21. h5 {
[%emt 0:09:05]} Qe8 {[%emt 0:00:49]} 22. Qd2 {[%emt 0:00:07]} Na5 {[%emt 0:02:
05]} 23. h6 {[%emt 0:00:28]} g6 {[%emt 0:02:12]} 24. d5 {[%emt 0:00:28]} Kg8 {
[%emt 0:01:11]} 25. Ba4 {[%emt 0:02:09]} Qf7 {[%emt 0:03:39]} 26. Qd4 {[%emt 0:
01:05]} Rfb8 {[%emt 0:01:22]} 27. b3 {[%emt 0:01:53]} Rb4 {[%emt 0:01:54]} 28.
Qg7+ {[%emt 0:01:03]} Qxg7 {[%emt 0:00:02]} 29. hxg7 {[%emt 0:00:01]} Nb7 {
[%emt 0:02:22]} 30. a3 {[%emt 0:02:06]} Rxa4 {[%emt 0:00:10]} 31. Nxa4 {
[%emt 0:01:10]} Bxa3+ {[%emt 0:02:42]} 32. Kc2 {[%emt 0:00:06]} Bb4 {[%emt 0:
00:30]} 33. Bd2 {[%emt 0:01:27]} Bd6 {[%emt 0:00:59]} 34. Bc3 {[%emt 0:00:34]}
Bg3 {[%emt 0:00:15]} 35. Rxh7 {[%emt 0:01:14]} 1-0

[Event "36th European Club Cup 2021"]
[Site "Struga"]
[Date "2021.09.20"]
[Round "3.56"]
[White "Hera, Imre Jr."]
[Black "Subelj, Jan"]
[Result "1/2-1/2"]
[ECO "A30"]
[WhiteElo "2582"]
[BlackElo "2415"]
[Annotator "ChessBase"]
[PlyCount "60"]
[EventDate "2021.09.18"]
[EventType "team-tourn"]
[EventCountry "MKD"]
[SourceTitle "playchess.com"]
[Source "ChessBase"]
[SourceQuality "1"]
[TimeControl "40/5400+30:1800+30"]

1. Nf3 {[%emt 0:00:20]} Nf6 {[%emt 0:00:25]} 2. g3 {[%emt 0:00:11]} c5 {
[%emt 0:01:10]} 3. Bg2 {[%emt 0:00:23]} Nc6 {[%emt 0:01:33]} 4. O-O {[%emt 0:
00:24]} e5 {[%emt 0:00:48]} 5. c4 {[%emt 0:06:43]} d5 {[%emt 0:01:21]} 6. cxd5
{[%emt 0:00:16]} Nxd5 {[%emt 0:00:28]} 7. Nc3 {[%emt 0:00:05]} Be6 {[%emt 0:00:
36]} 8. d3 {[%emt 0:23:33]} Be7 {[%emt 0:01:05]} 9. Bd2 {[%emt 0:00:52]} O-O {
[%emt 0:03:00]} 10. Nxd5 {[%emt 0:01:09]} Bxd5 {[%emt 0:00:54]} 11. Bc3 {
[%emt 0:00:05]} f6 {[%emt 0:03:25]} 12. a4 {[%emt 0:00:04]} Nd4 {[%emt 0:03:03]
} 13. Nd2 {[%emt 0:03:13]} Bxg2 {[%emt 0:08:20]} 14. Kxg2 {[%emt 0:00:02]} Kh8
{[%emt 0:03:33]} 15. Nc4 {[%emt 0:00:36]} Re8 {[%emt 0:06:56]} 16. e3 {[%emt 0:
01:24]} Nc6 {[%emt 0:01:58]} 17. Qe2 {[%emt 0:07:12]} Bf8 {[%emt 0:11:24]} 18.
Rad1 {[%emt 0:00:29]} Qd7 {[%emt 0:03:01]} 19. b3 {[%emt 0:02:11]} Rab8 {
[%emt 0:04:53]} 20. h4 {[%emt 0:19:16]} b5 {[%emt 0:04:05]} 21. axb5 {[%emt 0:
01:40]} Rxb5 {[%emt 0:00:11]} 22. Nd2 {[%emt 0:02:26]} Rd8 {[%emt 0:03:09]} 23.
Qf3 {[%emt 0:04:11]} Qd5 {[%emt 0:00:57]} 24. Ne4 {[%emt 0:03:00]} Rxb3 {
[%emt 0:01:40]} 25. g4 {[%emt 0:01:01]} a5 {[%emt 0:04:53]} 26. Ra1 {[%emt 0:
02:01]} Nb4 {[%emt 0:04:25]} 27. Rxa5 {[%emt 0:13:40]} Nxd3 {[%emt 0:00:57]}
28. Kg3 {[%emt 0:00:51]} Qc4 {[%emt 0:01:37]} 29. Rfa1 {[%emt 0:00:52]} Qd5 {
[%emt 0:12:41]} 30. Ra7 {[%emt 0:01:16]} Rb7 {[%emt 0:01:23]} 1/2-1/2

[Event "36th European Club Cup 2021"]
[Site "Struga"]
[Date "2021.09.20"]
[Round "3.57"]
[White "Mikhalchishin, Adrian"]
[Black "Roeder, Matthias"]
[Result "1/2-1/2"]
[ECO "D66"]
[WhiteElo "2455"]
[BlackElo "2372"]
[Annotator "ChessBase"]
[PlyCount "59"]
[EventDate "2021.09.18"]
[EventType "team-tourn"]
[EventCountry "MKD"]
[SourceTitle "playchess.com"]
[Source "ChessBase"]
[SourceQuality "1"]
[TimeControl "40/5400+30:1800+30"]

1. Nf3 {[%emt 0:00:02]} d5 {[%emt 0:01:21]} 2. d4 {[%emt 0:00:07]} Nf6 {
[%emt 0:01:07]} 3. c4 {[%emt 0:00:12]} e6 {[%emt 0:01:02]} 4. Bg5 {[%emt 0:00:
27]} Nbd7 {[%emt 0:05:50]} 5. e3 {[%emt 0:02:36]} h6 {[%emt 0:00:40]} 6. Bh4 {
[%emt 0:02:12]} Be7 {[%emt 0:01:37]} 7. Nc3 {[%emt 0:00:49]} O-O {[%emt 0:04:
37]} 8. Rc1 {[%emt 0:03:12]} c6 {[%emt 0:00:55]} 9. Bd3 {[%emt 0:01:15]} dxc4 {
[%emt 0:01:03]} 10. Bxc4 {[%emt 0:01:16]} b5 {[%emt 0:00:09]} 11. Bd3 {[%emt 0:
01:53]} a6 {[%emt 0:01:15]} 12. e4 {[%emt 0:17:33]} Nxe4 {[%emt 0:00:52]} 13.
Bxe4 {[%emt 0:03:44]} Bxh4 {[%emt 0:02:55]} 14. Bxc6 {[%emt 0:00:04]} Ra7 {
[%emt 0:08:43]} 15. a4 {[%emt 0:05:15]} bxa4 {[%emt 0:11:01]} 16. Nxa4 {
[%emt 0:03:28]} Nb8 {[%emt 0:07:49]} 17. Be4 {[%emt 0:00:57]} Bb7 {[%emt 0:03:
39]} 18. Bxb7 {[%emt 0:03:35]} Rxb7 {[%emt 0:00:07]} 19. O-O {[%emt 0:00:03]}
Bf6 {[%emt 0:02:57]} 20. Rc4 {[%emt 0:00:37]} Nd7 {[%emt 0:05:26]} 21. Qc2 {
[%emt 0:03:48]} Nb6 {[%emt 0:04:45]} 22. Rb4 {[%emt 0:03:34]} Rc7 {[%emt 0:01:
50]} 23. Nc5 {[%emt 0:45:21]} Nd5 {[%emt 0:12:43]} 24. Ra4 {[%emt 0:00:00]} Rc6
{[%emt 0:05:49]} 25. Qd3 {[%emt 0:00:00]} Rb6 {[%emt 0:02:22]} 26. Qd2 {
[%emt 0:00:00]} Qd6 {[%emt 0:01:17]} 27. Rfa1 {[%emt 0:00:00]} Rd8 {[%emt 0:04:
37]} 28. Rxa6 {[%emt 0:00:00]} Rxa6 {[%emt 0:00:03]} 29. Rxa6 {[%emt 0:00:00]}
Qf4 {[%emt 0:00:03]} 30. Qxf4 {[%emt 0:00:00]} 1/2-1/2